fUSD/lending_fUSD_20260122
["ID","MTS","AMOUNT","RATE_DAILY","PERIOD"]
[403015503,1769061040915,-419.46,0.00022527,2]
[403015504,1769061040925,-419.46,0.00022584,2]
[403015505,1769061040935,-419.46,0.00022642,2]
[403015506,1769061040947,-419.46,0.00022699,2]
[403015507,1769061040968,-419.46,0.00022757,2]
[403015508,1769061040985,-419.46,0.00022815,2]
[403015509,1769061040996,-419.46,0.00022872,2]
[403015510,1769061041006,-419.46,0.0002293,2]
[403015511,1769061041016,-167.03,0.00022964,2]
[403015512,1769061041027,-419.46,0.00022988,2]
[403015513,1769061041037,-199.53,0.00023073,2]
[403015514,1769061041047,-311.36,0.00023219,2]
[403015515,1769061041058,-150.00292004,0.00023297,21]
[403015516,1769061041068,-955.46655713,0.00023476,2]
[403015517,1769061041077,-1253.47991207,0.00023476,2]
[403015518,1769061041089,-351.0,0.00023607,2]
[403015519,1769061041099,-167.03,0.00023839,2]
[403015520,1769061041109,-150.00292004,0.00024612,25]
[403015521,1769061041119,-1000.0,0.00024658,2]
[403015522,1769061041128,-167.93,0.00024658,2]
[403015523,1769061041138,-250.0,0.00024658,60]
[403015524,1769061041148,-250.0,0.00024658,60]
[403015525,1769061041159,-250.0,0.00024658,60]
[403015526,1769061041169,-400.000005,0.00024658,60]
[403015527,1769061041179,-167.03,0.00024714,2]
[403015528,1769061041188,-7873.89431668,0.000248,2]
[403015529,1769061041198,-200.0,0.00024886,2]
[403015530,1769061041207,-171.49094186,0.0002489,2]
[403015531,1769061041216,-151.31,0.0002489,2]
[403015532,1769061041226,-151.31,0.0002489,2]
[403015533,1769061041237,-151.31,0.0002489,2]
[403015534,1769061041248,-151.0,0.000249,7]
[403015535,1769061041258,-65988.07544382,0.000249,2]
[403015536,1769061041669,-20120.54,0.000249,2]
[403015537,1769061041776,-395.92311807,0.000249,2]
[403015538,1769061041787,-1729.9999,0.000249,2]
[403015539,1769061041801,-843.40981153,0.000249,2]
[403015547,1769061043347,-860.46226346,0.000249,2]
[403015548,1769061043405,-2237.21285878,0.000249,2]
[403015557,1769061046113,-151.0,0.00017839,2]
[403015558,1769061046123,-1267.4,0.000249,2]
[403015559,1769061046339,-3017.218997,0.000249,2]
[403015577,1769061743852,1000.0,0.000165,2]
[403015578,1769061752996,1000.0,0.000162,2]
[403015618,1769062232087,-676.92004919,0.000168,2]
[403015619,1769062232099,-323.07995081,0.000168,2]
[403015620,1769062232108,-105.95940665,0.00016959,2]
[403015621,1769062232199,-1059.18764589,0.00016959,2]
[403015622,1769062232256,-975.50294746,0.00016959,2]
[403015623,1769062232266,-150.05170418,0.00016959,2]
[403015624,1769062232276,-168.29,0.00017118,2]
[403015625,1769062232286,-500.0,0.00017195,2]
[403015626,1769062232296,-1000.0,0.00017369,2]
[403015627,1769062232305,-167.03,0.00017446,2]
[403015628,1769062232315,-500.0,0.00017505,2]
[403015629,1769062232325,-146.28010737,0.00017505,2]
[403015630,1769062232345,-353.71989263,0.00017505,2]
[403015631,1769062232355,-583.0,0.00017505,2]
[403015632,1769062232366,-150.0,0.00017505,2]
[403015633,1769062232377,-500.0,0.00017505,2]
[403015634,1769062232386,-150.0,0.00017505,2]
[403015635,1769062232396,-150.0,0.00017505,2]
[403015636,1769062232406,-150.0,0.00017505,2]
[403015637,1769062232415,-500.0,0.00017505,2]
[403015638,1769062232425,-500.0,0.00017505,2]
[403015639,1769062232435,-151.79721788,0.00017505,2]
[403015640,1769062232445,-185.09646381,0.00017505,2]
[403015641,1769062232456,-314.90353619,0.00017505,2]
[403015642,1769062232466,-500.0,0.0001756,2]
[403015643,1769062232475,-500.0,0.0001756,2]
[403015644,1769062232485,-583.0,0.0001756,2]
[403015646,1769062232494,-150.0,0.0001756,2]
[403015648,1769062232505,-503.44393732,0.0001756,2]
[403015649,1769062232514,-150.0,0.0001756,2]
[403015650,1769062232524,-500.0,0.0001756,2]
[403015651,1769062232533,-500.0,0.0001756,2]
[403015652,1769062232542,-500.0,0.0001756,2]
[403015653,1769062232551,-214.0,0.00017614,2]
[403015654,1769062232562,-155.0,0.00017614,2]
[403015655,1769062232571,-500.0,0.00017615,2]
[403015656,1769062232580,-554.35873295,0.00017615,2]
[403015657,1769062232590,-583.0,0.00017615,2]
[403015658,1769062232599,-500.0,0.00017615,2]
[403015659,1769062232608,-477.79346808,0.00017615,2]
[403015660,1769062232618,-375.5696967,0.00017615,2]
[403015661,1769062232628,-150.0,0.00017615,2]
[403015662,1769062232637,-500.0,0.00017615,2]
[403015663,1769062232647,-150.0,0.00017615,2]
[403015664,1769062232656,-150.0,0.00017615,2]
[403015665,1769062232666,-500.0,0.00017615,2]
[403015666,1769062232675,-150.0,0.00017615,2]
[403015667,1769062232685,-500.0,0.00017615,2]
[403015668,1769062232695,-530.90788788,0.00017669,2]
[403015669,1769062232706,-583.0,0.00017669,2]
[403015670,1769062232715,-500.0,0.00017669,2]
[403015671,1769062232725,-150.0,0.0001767,2]
[403015672,1769062232734,-504.38071297,0.0001767,2]
[403015673,1769062232744,-150.0,0.0001767,2]
[403015674,1769062232754,-240.93783644,0.0001767,2]
[403015675,1769062232763,-504.31201452,0.0001767,2]
[403015676,1769062232773,-274.98444734,0.0001767,2]
[403015677,1769062232784,-500.0,0.0001767,2]
[403015678,1769062232799,-10901.05233331,0.000177,2]
[403015679,1769062232825,-528.12118031,0.000177,2]
[403015680,1769062232838,-1905.14323361,0.000177,2]
[403015681,1769062232849,-1541.76684916,0.000177,2]
[403015682,1769062232862,-3710.18510261,0.000177,2]
[403015684,1769062238280,-180348.34913907,0.000177,2]
[403015708,1769062240371,-749.92209261,0.000177,2]
[403015709,1769062240382,-258.4291156,0.000177,2]
[403015774,1769062246182,-294.29981747,0.000177,2]
[403015785,1769062550446,10000.0,0.000165,2]
[403015786,1769062563309,10000.0,0.000165,2]
[403015787,1769062571644,10000.0,0.000165,2]
[403015788,1769062582580,10000.0,0.000165,2]
[403015810,1769063261014,2496.22,0.00016499,2]
[403015812,1769063268876,476.10981014,0.00014,2]
[403015830,1769063432343,-2957.01,0.00016623,2]
[403015831,1769063432352,-155.03186657,0.00016747,2]
[403015832,1769063432362,-150.00589813,0.00016781,2]
[403015833,1769063432372,-549.74,0.00016847,2]
[403015834,1769063432382,-549.74,0.00016891,2]
[403015835,1769063432391,-549.74,0.00016935,2]
[403015836,1769063432401,-549.74,0.0001698,2]
[403015837,1769063432410,-549.74,0.00017024,2]
[403015838,1769063432420,-549.74,0.00017068,2]
[403015839,1769063432429,-549.74,0.00017113,2]
[403015840,1769063432442,-549.74,0.00017157,2]
[403015841,1769063432452,-155.03186655,0.00017173,2]
[403015842,1769063432462,-489.0,0.000172,2]
[403015843,1769063432471,-549.74,0.00017201,2]
[403015844,1769063432482,-549.74,0.00017246,2]
[403015845,1769063432491,-452.0,0.00017274,2]
[403015846,1769063432501,-609.0,0.00017274,2]
[403015847,1769063432510,-549.74,0.0001729,2]
[403015848,1769063432521,-549.74,0.00017334,2]
[403015849,1769063432531,-763.0,0.0001734,2]
[403015850,1769063432540,-180.0,0.00017357,2]
[403015851,1769063432549,-549.74,0.00017379,2]
[403015852,1769063432559,-355.01131241,0.00017406,2]
[403015854,1769063432568,-150.0,0.00017415,2]
[403015856,1769063432577,-294.68424811,0.00017415,2]
[403015858,1769063432586,-150.0,0.00017415,2]
[403015860,1769063432596,-500.0,0.00017415,2]
[403015862,1769063432605,-486.0,0.00017415,2]
[403015863,1769063432614,-150.0,0.00017415,2]
[403015864,1769063432623,-150.0,0.00017415,2]
[403015865,1769063432632,-549.74,0.00017423,2]
[403015866,1769063432642,-500.0,0.00017459,2]
[403015867,1769063432651,-549.74,0.00017467,2]
[403015868,1769063432661,-150.0,0.0001747,2]
[403015869,1769063432670,-150.0,0.0001747,2]
[403015870,1769063432679,-497.42246964,0.0001747,2]
[403015871,1769063432688,-486.0,0.0001747,2]
[403015872,1769063432698,-150.0,0.0001747,2]
[403015873,1769063432707,-150.0,0.00017505,2]
[403015874,1769063432716,-154.25849627,0.00017505,2]
[403015875,1769063432725,-549.74,0.00017512,2]
[403015876,1769063432735,-205.41720599,0.00017525,2]
[403015877,1769063432745,-486.0,0.00017525,2]
[403015878,1769063432755,-150.0,0.00017525,2]
[403015879,1769063432765,-549.74,0.00017556,2]
[403015880,1769063432775,-150.0,0.0001756,2]
[403015881,1769063432785,-486.0,0.00017579,2]
[403015882,1769063432795,-240.81706826,0.00017579,2]
[403015883,1769063432804,-22114.2251,0.00017589,2]
[403015884,1769063432813,-155.03186655,0.00017599,2]
[403015885,1769063432823,-549.74,0.000176,2]
[403015886,1769063432832,-198.56508977,0.00017615,2]
[403015887,1769063432843,-486.0,0.00017634,2]
[403015888,1769063432853,-549.74,0.00017645,2]
[403015889,1769063432863,-549.74,0.00017689,2]
[403015890,1769063432873,-486.0,0.00017689,2]
[403015891,1769063432883,-617.73,0.00017689,2]
[403015892,1769063432892,-643.101,0.00017689,2]
[403015893,1769063432903,-222.20689541,0.00017689,2]
[403015894,1769063432913,-504.11875267,0.00017689,2]
[403015895,1769063432922,-523.26072883,0.00017689,2]
[403015896,1769063432931,-202.03963665,0.00017689,2]
[403015897,1769063432942,-151.0,0.00017689,2]
[403015898,1769063432951,-151.0,0.00017689,2]
[403015899,1769063432961,-151.0,0.00017689,2]
[403015900,1769063432970,-151.0,0.00017689,2]
[403015901,1769063432979,-151.0,0.00017689,2]
[403015902,1769063432990,-151.0,0.00017689,2]
[403015903,1769063432999,-202.57409006,0.00017689,2]
[403015904,1769063433008,-151.0,0.00017689,2]
[403015905,1769063433018,-151.0,0.00017689,2]
[403015906,1769063433027,-151.0,0.00017689,2]
[403015907,1769063433037,-151.0,0.00017689,2]
[403015908,1769063433047,-151.0,0.00017689,2]
[403015909,1769063433056,-151.0,0.00017689,2]
[403015910,1769063433066,-151.0,0.00017689,2]
[403015911,1769063433075,-500.0,0.00017689,2]
[403015912,1769063433085,-500.0,0.00017689,2]
[403015913,1769063433094,-500.0,0.00017689,2]
[403015914,1769063433103,-500.0,0.00017689,2]
[403015915,1769063433113,-500.0,0.00017689,2]
[403015916,1769063433122,-500.0,0.00017689,2]
[403015917,1769063433132,-500.0,0.00017689,2]
[403015918,1769063433141,-500.0,0.00017689,2]
[403015919,1769063433151,-500.6854929,0.00017689,2]
[403015920,1769063433160,-555.27807541,0.00017699,2]
[403015921,1769063433170,-500.0,0.00017699,2]
[403015922,1769063433180,-500.0,0.00017699,2]
[403015923,1769063433189,-500.0,0.00017699,2]
[403015924,1769063433198,-500.0,0.00017699,2]
[403015925,1769063433208,-500.0,0.00017699,2]
[403015926,1769063433217,-500.0,0.00017699,2]
[403015927,1769063433227,-500.0,0.00017699,2]
[403015928,1769063433236,-500.0,0.00017699,2]
[403015929,1769063433245,-500.0,0.00017699,2]
[403015930,1769063433255,-500.0,0.00017699,2]
[403015931,1769063433264,-500.0,0.00017699,2]
[403015932,1769063433273,-500.0,0.00017699,2]
[403015933,1769063433283,-500.0,0.00017699,2]
[403015934,1769063433293,-500.0,0.00017699,2]
[403015935,1769063433302,-500.0,0.00017699,2]
[403015936,1769063433311,-500.0,0.00017699,2]
[403015937,1769063433321,-500.0,0.00017699,2]
[403015938,1769063433332,-500.0,0.00017699,2]
[403015939,1769063433341,-500.0,0.00017699,2]
[403015940,1769063433351,-500.0,0.00017699,2]
[403015941,1769063433361,-500.0,0.00017699,2]
[403015942,1769063433371,-500.0,0.00017699,2]
[403015943,1769063433381,-500.0,0.00017699,2]
[403015944,1769063433390,-500.0,0.00017699,2]
[403015945,1769063433400,-500.0,0.00017699,2]
[403015946,1769063433410,-500.0,0.00017699,2]
[403015947,1769063433419,-500.0,0.00017699,2]
[403015948,1769063433429,-500.0,0.00017699,2]
[403015949,1769063433438,-500.0,0.00017699,2]
[403015950,1769063433451,-500.0,0.00017699,2]
[403015951,1769063433460,-500.0,0.00017699,2]
[403015952,1769063433470,-324.22288204,0.00017699,2]
[403015953,1769063433479,-500.0,0.00017699,2]
[403015954,1769063433488,-500.0,0.00017699,2]
[403015955,1769063433499,-500.0,0.00017699,2]
[403015956,1769063433508,-500.0,0.00017699,2]
[403015957,1769063433518,-1110.78417922,0.00017699,5]
[403015958,1769063433528,-500.0,0.00017699,2]
[403015959,1769063433537,-500.0,0.00017699,2]
[403015960,1769063433547,-197.31,0.00017699,2]
[403015961,1769063433556,-1700.0,0.000177,6]
[403015962,1769063433566,-9999.99,0.00017728,2]
[403015963,1769063433576,-6370.04,0.00017728,2]
[403015964,1769063433585,-150.99,0.00017728,2]
[403015965,1769063433594,-6662.90464684,0.00017728,2]
[403015966,1769063433981,-3337.08535316,0.00017728,2]
[403015967,1769063433992,-486.0,0.00017744,2]
[403015968,1769063434002,-486.0,0.00017799,2]
[403015969,1769063434012,-2343.86526646,0.000178,6]
[403015970,1769063434023,-1056.13473354,0.000178,6]
[403015971,1769063434034,-4000.28607146,0.0001781,2]
[403015972,1769063434043,-486.0,0.00017853,2]
[403015973,1769063434053,-627.64218632,0.000179,6]
[403015974,1769063434072,-854.31250193,0.000179,6]
[403015975,1769063434084,-653.94812092,0.000179,6]
[403015976,1769063434099,-2542.81382997,0.000179,6]
[403015977,1769063434111,-421.28336086,0.000179,6]
[403015978,1769063434120,-486.0,0.00017908,2]
[403015979,1769063434130,-1216.9024071,0.0001791,2]
[403015980,1769063434158,-2379.46437723,0.0001791,2]
[403015981,1769063434170,-999.0,0.0001791,2]
[403015982,1769063434196,-670.50807902,0.0001791,2]
[403015983,1769063434218,-508.0,0.0001791,2]
[403015984,1769063438413,-395.93674789,0.00017186,2]
[403015985,1769063438425,-268.42325211,0.00017186,2]
[403015986,1769063438434,-151.0,0.00017369,2]
[403015987,1769063438445,-802.91852945,0.0001791,2]
[403015988,1769063438457,-509.05250579,0.0001791,2]
[403015989,1769063438556,-332.16504567,0.0001791,2]
[403015990,1769063438616,-2231.31661909,0.0001791,2]
[403015991,1769063438626,-2506.58315904,0.00017918,2]
[403015992,1769063438636,-486.0,0.00017963,2]
[403015993,1769063438646,-617.73,0.00017963,2]
[403015994,1769063438656,-749.0,0.00017966,2]
[403015995,1769063438666,-171.49094186,0.0001799,2]
[403015996,1769063438675,-1000.0,0.00017997,2]
[403015997,1769063438684,-391.60731856,0.00017999,2]
[403015998,1769063438694,-329.97002048,0.00017999,2]
[403015999,1769063438704,-500.0,0.00017999,2]
[403016000,1769063438714,-532.78185855,0.00017999,2]
[403016001,1769063438723,-502.01195839,0.00017999,2]
[403016002,1769063438733,-500.0,0.00017999,2]
[403016004,1769063438743,-794.7725961,0.00018,2]
[403016007,1769063438754,-4478.58728033,0.00018,2]
[403016082,1769063440801,-177.47226611,0.00017918,2]
[403016083,1769063440811,-144.34223389,0.00018,2]
[403016105,1769063446609,-151.29,0.00017413,2]
[403016106,1769063446629,-1038.0613,0.000179,2]
[403016107,1769063446650,-170.0,0.00018,2]
[403016108,1769063446671,-4.38288253,0.00018,2]
[403016119,1769063468177,-151.0,0.00017545,2]
[403016120,1769063468204,-195.0,0.00017772,2]
[403016121,1769063468230,-600.0,0.00017772,2]
[403016122,1769063468257,-300.0,0.00017999,2]
[403016123,1769063468285,-3754.0,0.00018,2]
[403016195,1769063928943,4259.63,0.00014395,2]
[403016196,1769063956077,2140.55982706,0.000226,120]
[403016238,1769064435502,1200.0,0.000169,6]
[403016239,1769064437606,2400.0,0.000178,6]
[403016240,1769064439749,1400.0,0.000179,6]
[403016277,1769064631490,-158.96,0.00016702,2]
[403016278,1769064631500,-128.02,0.00016774,2]
[403016279,1769064631541,-63.96,0.00016774,2]
[403016280,1769064631552,-200.0,0.00016863,2]
[403016281,1769064631563,-150.00449737,0.00016875,2]
[403016282,1769064631572,-499.43,0.00016875,2]
[403016283,1769064631582,-200.0,0.0001716,2]
[403016284,1769064631591,-1784.17,0.0001716,2]
[403016285,1769064631600,-166.66,0.00017277,2]
[403016286,1769064631610,-60.01222593,0.00017288,2]
[403016287,1769064631622,-239.98777407,0.00017288,2]
[403016288,1769064631631,-475.62354154,0.00017288,2]
[403016289,1769064631643,-724.37645846,0.00017288,2]
[403016290,1769064631652,-7484.1797,0.00017289,2]
[403016291,1769064631662,-550.0,0.00017388,2]
[403016292,1769064631671,-300.0,0.00017388,2]
[403016293,1769064631681,-1905.20566455,0.00017389,2]
[403016294,1769064631692,-15110.52395697,0.00017389,2]
[403016295,1769064631703,-455.0,0.00017389,2]
[403016296,1769064631730,-5000.0,0.00017389,2]
[403016297,1769064631742,-832.22856812,0.00017389,2]
[403016299,1769064631753,-994.88176241,0.00017389,2]
[403016301,1769064631764,-1600.0,0.00017389,2]
[403016302,1769064631775,-2830.76908413,0.00017389,2]
[403016303,1769064631786,-619.35433313,0.00017389,2]
[403016309,1769064631858,-364.2,0.00017389,2]
[403016311,1769064631872,-1293.07089697,0.00017389,2]
[403016315,1769064637644,-2234.44893372,0.00017389,2]
[403016316,1769064637654,-1491.92810187,0.00017389,2]
[403016317,1769064637665,-802.0,0.00017389,2]
[403016318,1769064637676,-206.07189813,0.00017389,2]
[403016319,1769064637685,-3595.74767468,0.000174,2]
[403016320,1769064637695,-3315.12842745,0.000174,2]
[403016321,1769064637706,-5000.00475762,0.000174,2]
[403016322,1769064637791,-252.9257169,0.000174,2]
[403016323,1769064637803,-6103.65377534,0.000174,2]
[403016324,1769064637814,-623.03452351,0.000174,2]
[403016325,1769064637829,-8229.21082737,0.000174,2]
[403016326,1769064637841,-4707.47864378,0.000174,2]
[403016327,1769064637859,-875.29292091,0.000174,2]
[403016393,1769064639584,-5176.03152716,0.000174,2]
[403016394,1769064639654,-890.978,0.000174,2]
[403016395,1769064639666,-930.29142435,0.000174,2]
[403016396,1769064640093,-843.13372715,0.000174,2]
[403016397,1769064640165,-9090.0,0.000174,2]
[403016410,1769064642573,-3882.94500915,0.000174,2]
[403016411,1769064642585,-169.89071931,0.000174,2]
[403016412,1769064642594,-422.99124563,0.00017423,2]
[403016413,1769064642604,-305.4977296,0.00017441,2]
[403016414,1769064642616,-694.4922704,0.00017441,2]
[403016415,1769064642625,-757.53,0.00017441,2]
[403016416,1769064642634,-310.35,0.00017441,2]
[403016418,1769064642644,-1820.86940785,0.00017441,2]
[403016419,1769064642682,-2.46082382,0.00017441,2]
[403016420,1769064642755,-2177.02669856,0.00017441,2]
[403016421,1769064642782,-410.28570675,0.00017441,2]
[403016422,1769064642792,-57.84155699,0.00017479,2]
[403016423,1769064642805,-104.45829846,0.00017479,2]
[403016424,1769064642815,-216.78258408,0.00017479,3]
[403016425,1769064642839,-569.09741592,0.00017479,3]
[403016426,1769064642848,-514.481,0.00017488,2]
[403016427,1769064642858,-560.64,0.00017488,2]
[403016428,1769064642870,-500.0,0.00017488,2]
[403016429,1769064642881,-320.63556039,0.00017488,2]
[403016430,1769064642890,-500.0,0.00017488,2]
[403016431,1769064642899,-500.0,0.00017488,2]
[403016432,1769064642910,-500.0,0.00017488,2]
[403016433,1769064642919,-500.0,0.00017488,2]
[403016434,1769064642929,-500.0,0.00017488,2]
[403016435,1769064642941,-500.0,0.00017488,2]
[403016436,1769064642950,-500.0,0.00017488,2]
[403016437,1769064642959,-500.0,0.00017488,2]
[403016438,1769064642968,-500.0,0.00017488,2]
[403016439,1769064642978,-500.0,0.00017488,2]
[403016440,1769064642988,-500.0,0.00017488,2]
[403016441,1769064642998,-500.0,0.00017488,2]
[403016442,1769064643007,-500.0,0.00017488,2]
[403016443,1769064643016,-500.0,0.00017488,2]
[403016444,1769064643027,-500.0,0.00017488,2]
[403016445,1769064643037,-500.0,0.00017488,2]
[403016446,1769064643047,-500.0,0.00017488,2]
[403016448,1769064643057,-500.0,0.00017488,2]
[403016450,1769064643067,-500.0,0.00017488,2]
[403016451,1769064643078,-500.0,0.00017488,2]
[403016452,1769064643089,-500.0,0.00017488,2]
[403016453,1769064643099,-500.0,0.00017488,2]
[403016454,1769064643108,-500.0,0.00017488,2]
[403016456,1769064643118,-500.0,0.00017488,2]
[403016458,1769064643127,-500.0,0.00017488,2]
[403016460,1769064643136,-500.0,0.00017488,2]
[403016462,1769064643145,-631.95167272,0.00017488,2]
[403016464,1769064643155,-500.0,0.00017488,2]
[403016466,1769064643164,-500.0,0.00017488,2]
[403016468,1769064643174,-500.0,0.00017488,2]
[403016470,1769064643184,-500.0,0.00017488,2]
[403016472,1769064643193,-143.19435097,0.00017488,2]
[403016473,1769064643219,-356.80564903,0.00017488,2]
[403016474,1769064643233,-314.88828043,0.00017488,2]
[403016481,1769064645463,-185.11171957,0.00017488,2]
[403016482,1769064645473,-500.0,0.00017488,2]
[403016483,1769064645484,-118.25983901,0.00017488,2]
[403016484,1769064645639,-381.74016099,0.00017488,2]
[403016485,1769064645650,-75.83483901,0.00017488,2]
[403016486,1769064645815,-424.16516099,0.00017488,2]
[403016487,1769064645825,-500.0,0.00017488,2]
[403016488,1769064645836,-500.0,0.00017488,2]
[403016489,1769064645846,-500.0,0.00017488,2]
[403016490,1769064645856,-500.0,0.00017488,2]
[403016491,1769064645865,-305.83483901,0.00017488,2]
[403016597,1769064853465,-534.49,0.00016786,2]
[403016603,1769064867578,168.34,0.00016709,2]
[403016604,1769064872999,-250.0,0.00017,2]
[403016605,1769064873026,-150.0027853,0.00017,2]
[403016606,1769064873051,-4453.1838,0.00017389,2]
[403016607,1769064873075,-218.76,0.000174,2]
[403016608,1769064873099,-502.0,0.00017452,2]
[403016609,1769064873403,-151.0,0.00017485,2]
[403016610,1769064873428,-304.0,0.00017487,2]
[403016611,1769064873451,-253.84257976,0.00017488,2]
[403016612,1769064873474,-302.39171764,0.00017488,2]
[403016613,1769064873500,-1150.8545542,0.00017488,2]
[403016614,1769064873532,-194.16516099,0.00017488,2]
[403016615,1769064873559,-500.0,0.00017488,2]
[403016616,1769064873584,-500.0,0.00017488,2]
[403016617,1769064873611,-500.0,0.00017488,2]
[403016618,1769064873636,-500.0,0.00017488,2]
[403016619,1769064873661,-500.0,0.00017488,2]
[403016620,1769064873688,-500.0,0.00017488,2]
[403016621,1769064873714,-500.0,0.00017488,2]
[403016622,1769064873742,-500.0,0.00017488,2]
[403016623,1769064873767,-500.0,0.00017488,2]
[403016624,1769064873795,-500.0,0.00017488,2]
[403016625,1769064873820,-500.0,0.00017488,2]
[403016626,1769064873846,-500.0,0.00017488,2]
[403016627,1769064873873,-500.0,0.00017488,2]
[403016628,1769064873899,-500.0,0.00017488,2]
[403016629,1769064873926,-500.0,0.00017488,2]
[403016630,1769064873955,-500.0,0.00017488,2]
[403016631,1769064873983,-500.0,0.00017488,2]
[403016632,1769064874010,-500.0,0.00017488,2]
[403016633,1769064874038,-500.0,0.00017488,2]
[403016634,1769064874063,-500.0,0.00017488,2]
[403016635,1769064874091,-500.0,0.00017488,2]
[403016636,1769064874118,-500.0,0.00017488,2]
[403016637,1769064874144,-500.0,0.00017488,2]
[403016638,1769064874171,-630.20852454,0.00017488,2]
[403016639,1769064874197,-500.0,0.00017488,2]
[403016640,1769064874227,-500.0,0.00017488,2]
[403016641,1769064874254,-500.0,0.00017488,2]
[403016642,1769064874281,-500.0,0.00017488,2]
[403016643,1769064874307,-500.0,0.00017488,2]
[403016644,1769064874332,-500.0,0.00017488,2]
[403016645,1769064874358,-350.0,0.00017488,2]
[403016646,1769064874385,-500.0,0.00017488,2]
[403016647,1769064874412,-500.0,0.00017488,2]
[403016648,1769064874440,-500.0,0.00017488,2]
[403016649,1769064874468,-500.0,0.00017488,2]
[403016650,1769064874495,-250.0,0.00017488,2]
[403016651,1769064874521,-527.17942859,0.00017488,2]
[403016652,1769064874547,-500.0,0.00017488,2]
[403016653,1769064874572,-500.0,0.00017488,2]
[403016654,1769064874598,-500.0,0.00017488,2]
[403016655,1769064874623,-500.0,0.00017488,2]
[403016656,1769064874646,-195.0,0.00017489,2]
[403016657,1769064874669,-317.58690255,0.00017489,2]
[403016658,1769064874698,-500.0,0.00017489,2]
[403016659,1769064874721,-514.83889524,0.00017489,2]
[403016660,1769064874745,-500.0,0.00017489,2]
[403016661,1769064874769,-537.89662672,0.00017489,2]
[403016662,1769064874792,-204.21914209,0.00017489,2]
[403016663,1769064874816,-500.0,0.00017489,2]
[403016664,1769064874840,-500.0,0.00017489,2]
[403016665,1769064874863,-500.0,0.00017489,2]
[403016666,1769064874888,-8.37988238,0.00017489,2]
[403016671,1769064926344,-1000.0,0.00016917,2]
[403016697,1769065299552,-158.97,0.00016706,2]
[403016698,1769065299576,-168.29,0.00016722,2]
[403016699,1769065299601,-213.8,0.00016803,3]
[403016700,1769065299626,-195.10364202,0.00016815,2]
[403016708,1769065365058,211.43,0.000165,2]
[403016716,1769065434613,-300.0,0.00016667,2]
[403016717,1769065440112,-1200.0,0.00016667,2]
[403016718,1769065441805,-195.0,0.00016667,2]
[403016719,1769065445048,-233.98301714,0.00016667,2]
[403016720,1769065448233,-155.03186655,0.00016667,2]
[403016731,1769065538975,-200.0,0.00016544,2]
[403016732,1769065689320,623.0,0.00016,2]
[403016733,1769065697246,37.46226346,0.00016461,2]
[403016734,1769065697274,904.27773654,0.00016461,2]
[403016735,1769065806143,659.85,0.00016402,2]
[403016736,1769065814218,5533.0,0.000165,3]
[403016741,1769065831875,-289.0,0.00016567,2]
[403016742,1769065831884,-121.03966752,0.00016583,2]
[403016743,1769065831895,-1078.91753198,0.00016583,2]
[403016744,1769065831954,-5246.5428005,0.00016583,2]
[403016745,1769065831963,-1200.0,0.00016599,2]
[403016746,1769065831973,-300.0,0.00016599,2]